bitfinex-derivatives/quotes_SOLF0:USTF0_20220109
["timestamp","ask_amount","ask_price","bid_price","bid_amount"]
[1641749868997,34.336258,143.9,143.8,33.40179]
[1641749869195,34.336258,143.9,143.81,4.0]
[1641749869395,34.336258,143.9,143.84,4.0]
[1641749869796,34.336258,143.9,143.83,4.0]
[1641749870095,34.336258,143.9,143.82,43.08087032]
[1641749870296,34.336258,143.9,143.82,39.08087032]
[1641749870497,5.56047433,143.88,143.82,39.08087032]
[1641749870796,13.50647433,143.88,143.83,39.08087032]
[1641749871997,13.50647433,143.88,143.81,49.16381773]
[1641749872200,13.50647433,143.88,143.82,4.0]
[1641749872698,13.50647433,143.88,143.85,3.94644514]
[1641749875703,13.50647433,143.88,143.82,4.0]
[1641749875903,13.50647433,143.88,143.83,3.94668898]
[1641749879405,13.50647433,143.88,143.8,4.0]
[1641749879606,13.50647433,143.88,143.84,3.94714886]
[1641749880607,5.56063525,143.87,143.84,3.94714886]
[1641749880808,1.61480708,143.84,143.79,64.18771844]
[1641749881009,9.74180708,143.84,143.79,49.16381773]
[1641749881208,8.127,143.84,143.79,10.08294741]
[1641749881710,8.127,143.84,143.79,14.08294741]
[1641749881908,8.127,143.84,143.79,10.08294741]
[1641749882108,76.58498578,143.89,143.78,70.74566032]
[1641749882109,76.58498578,143.89,143.78,95.84512305]
[1641749882512,76.58498578,143.89,143.78,91.84512305]
[1641749882712,4.0,143.88,143.78,91.84512305]
[1641749882913,27.66479,143.85,143.82,39.08087032]
[1641749883111,34.77079,143.85,143.82,39.08087032]
[1641749883913,34.77079,143.85,143.81,3.94719313]
[1641749885012,38.77079,143.85,143.81,3.94719313]
[1641749885415,4.0,143.82,143.81,9.313e-05]
[1641749885614,9.768,143.82,143.79,10.08294741]
[1641749885813,16.72331212,143.82,143.79,10.08294741]
[1641749886415,5.56336654,143.8,143.79,10.08294741]
[1641749886814,5.56336654,143.8,143.74,39.08087032]
[1641749887515,5.56336654,143.8,143.74,43.08087032]
[1641749888015,6.95531212,143.82,143.75,39.08087032]
[1641749888216,5.56205526,143.84,143.75,43.08087032]
[1641749888515,6.95289414,143.86,143.76,43.08087032]
[1641749888715,6.95289414,143.86,143.76,44.93687032]
[1641749888916,6.95289414,143.86,143.79,27.66479]
[1641749889117,3.94842485,143.82,143.79,34.23479]
[1641749889516,8.00683791,143.88,143.8,4.0]
[1641749889716,8.00683791,143.88,143.8,5.738]
[1641749889915,8.00683791,143.88,143.8,4.0]
[1641749890117,34.6155094,143.91,143.82,4.0]
[1641749890319,34.6155094,143.91,143.83,4.0]
[1641749890517,35.80663051,143.94,143.82,9.076]
[1641749890518,14.95278178,143.94,143.86,4.0]
[1641749890717,14.95278178,143.94,143.86,6.564]
[1641749890918,14.95278178,143.94,143.86,10.564]
[1641749891120,35.66691416,143.97,143.87,4.0]
[1641749891519,35.66691416,143.97,143.88,4.0]
[1641749891818,35.66691416,143.97,143.87,4.0]
[1641749892019,6.94806323,143.96,143.85,31.66479]
[1641749892321,6.94806323,143.96,143.85,27.66479]
[1641749892520,6.94806323,143.96,143.85,31.66479]
[1641749892719,6.94806323,143.96,143.86,10.08294741]
[1641749892920,6.94806323,143.96,143.87,4.0]
[1641749893120,6.94806323,143.96,143.86,14.08294741]
[1641749894521,6.9495118,143.93,143.86,10.08294741]
[1641749894720,10.89551101,143.93,143.86,10.08294741]
[1641749895424,10.89551101,143.93,143.85,37.74773741]
[1641749895722,10.89551101,143.93,143.85,41.74773741]
[1641749895923,3.94599921,143.93,143.89,4.0]
[1641749896123,3.94599921,143.93,143.89,9.415]
[1641749897224,3.94599921,143.93,143.86,10.08294741]
[1641749897422,12.51899921,143.93,143.9,2.55505144]
[1641749897822,18.07761494,143.93,143.9,2.55505144]
[1641749898225,14.13161573,143.93,143.9,2.55505144]
[1641749898425,14.13161573,143.93,143.86,21.28182922]
[1641749898625,3.25127903,143.92,143.86,21.28182922]
[1641749898824,3.25127903,143.92,143.86,17.28182922]
[1641749899224,12.06227903,143.92,143.87,17.28182922]
[1641749900026,12.06227903,143.92,143.86,27.36477663]
[1641749900631,12.06227903,143.92,143.87,4.0]
[1641749900828,12.06227903,143.92,143.86,27.36477663]
[1641749901030,17.62125564,143.92,143.87,14.72677778]
[1641749901928,17.62125564,143.92,143.86,27.36477663]
[1641749902328,14.36997661,143.92,143.86,27.36477663]
[1641749902528,17.62090464,143.92,143.87,3.94615932]
[1641749902929,12.06192803,143.92,143.88,27.66479]
[1641749903231,3.25092803,143.92,143.88,31.66479]
[1641749903630,3.25092803,143.92,143.89,27.36336184]
[1641749904433,27.66479,143.99,143.9,4.0]
[1641749904631,27.66479,143.99,143.9,10.256]
[1641749905031,27.66479,143.99,143.93,27.66479]
[1641749905232,27.66479,143.99,143.93,34.45679]
[1641749905634,27.66479,143.99,143.94,2.55505144]
[1641749906534,7.99955978,144.01,143.97,4.0]
[1641749906734,14.72677778,144.06,143.99,4.0]
[1641749906735,5.55353678,144.06,143.99,4.0]
[1641749906936,33.21832678,144.06,143.98,31.66479]
[1641749907134,33.21832678,144.06,143.99,4.0]
[1641749907135,27.66479,144.06,143.99,4.0]
[1641749907336,46.39156778,144.08,143.98,33.39979]
[1641749907534,46.39156778,144.08,143.98,31.66479]
[1641749907934,42.39156778,144.08,144.02,4.0]
[1641749908134,42.39156778,144.08,144.02,12.986]
[1641749908535,42.39156778,144.08,144.02,8.986]
[1641749908938,27.66479,144.08,144.02,36.65079]
[1641749909137,27.66479,144.08,144.02,8.986]
[1641749909937,33.21636792,144.11,144.02,8.986]
[1641749910537,37.21636792,144.11,144.02,8.986]
[1641749910941,27.66479,144.05,143.98,33.34368651]
[1641749911140,36.55779,144.05,143.98,31.60868651]
[1641749911341,6.94420333,144.04,143.98,3.94389651]
[1641749912340,36.55779,144.05,143.98,3.94389651]
[1641749912541,8.893,144.05,143.98,3.94389651]
[1641749912742,21.38921753,144.1,143.98,7.94389651]
[1641749912943,21.38921753,144.1,143.99,31.66479]
[1641749913142,21.38921753,144.1,144.0,1.735]
[1641749913342,21.38921753,144.1,144.01,4.0]
[1641749913545,21.38921753,144.1,144.01,11.03]
[1641749913744,6.66243975,144.1,144.01,7.03]
[1641749914043,5.55300797,144.07,144.01,7.03]
[1641749914244,5.55380705,144.05,144.03,3.94326078]
[1641749915143,33.21859705,144.05,144.03,3.94326078]
[1641749916344,33.21859705,144.05,143.95,99.79769]
[1641749916644,33.21859705,144.05,143.95,95.79769]
[1641749917145,33.21859705,144.05,143.96,2.54333912]
[1641749917546,6.66257281,144.09,143.99,4.0]
[1641749918043,6.66257281,144.09,144.0,5.735]
[1641749918243,34.60561943,144.11,144.0,4.0]
[1641749918445,34.60561943,144.11,144.01,5.735]
[1641749918649,34.60561943,144.11,144.01,4.0]
[1641749919045,40.15727618,144.11,144.0,4.27833912]
[1641749919245,78.99506618,144.11,144.0,2.54333912]
[1641749919445,5.55243202,144.09,144.0,2.54333912]
[1641749920249,5.55243202,144.09,143.99,31.66479]
[1641749920947,9.55243202,144.09,143.99,31.66479]
[1641749921150,5.55322696,144.07,143.99,27.66479]
[1641749921348,9.55322696,144.07,143.99,27.66479]
[1641749922646,5.55322696,144.07,143.99,27.66479]
[1641749923247,27.66479,144.05,143.97,67.50766955]
[1641749923447,31.12121122,144.08,144.0,4.0]
[1641749923847,31.12121122,144.08,143.99,4.0]
[1641749924047,31.12121122,144.08,144.0,1.735]
[1641749924248,31.12121122,144.08,143.99,5.735]
[1641749924448,31.12121122,144.08,144.01,4.0]
[1641749925048,31.12121122,144.08,144.02,5.735]
[1641749925249,27.66479,144.13,144.04,4.0]
[1641749925450,27.66479,144.13,144.04,9.022]
[1641749925650,3.45826749,144.06,144.04,9.022]
[1641749925854,27.66479,144.13,144.04,10.757]
[1641749926256,4.0,144.12,144.04,10.757]
[1641749926453,9.55113434,144.12,144.04,9.022]
[1641749926656,5.55113434,144.12,144.04,9.022]
[1641749927154,27.66479,144.1,144.01,63.2391]
[1641749927755,5.55113434,144.12,144.01,67.2391]
[1641749927954,5.55113434,144.12,144.02,5.735]
[1641749928355,5.55113434,144.12,144.02,8.27729178]
[1641749928557,27.66479,144.13,144.03,4.0]
[1641749928757,27.66479,144.13,144.04,5.735]
[1641749929054,27.66479,144.13,144.04,12.341]
[1641749929254,27.66479,144.13,144.04,40.00579]
[1641749929455,3.45704164,144.12,144.04,40.00579]
[1641749929655,3.45704164,144.12,144.05,5.735]
[1641749930454,3.45704164,144.12,144.07,4.0]
[1641749930654,3.45704164,144.12,144.08,1.734]
[1641749931259,4.164e-05,144.12,144.08,1.734]
[1641749932458,4.164e-05,144.12,144.07,1.734]
[1641749932659,4.164e-05,144.12,144.05,5.67602255]
[1641749932859,34.60393371,144.15,144.05,5.67602255]
[1641749933260,34.60393371,144.15,144.07,27.66479]
[1641749933660,2.41867071,144.11,144.07,27.66479]
[1641749935762,2.41867071,144.11,144.06,1.735]
[1641749935963,2.41867071,144.11,144.05,3.94202255]
[1641749936365,2.41867071,144.11,144.04,33.39979]
[1641749936564,2.41867071,144.11,144.06,3.94172111]
[1641749937367,34.60393371,144.15,144.06,3.94172111]
[1641749937567,1.38180483,144.14,144.06,3.94172111]
[1641749937967,1.38180483,144.14,144.07,2.55043542]
[1641749938869,1.38180483,144.14,144.06,3.94172111]
[1641749940068,1.38180483,144.14,144.05,5.734]
[1641749940469,1.38180483,144.14,144.07,3.94189218]
[1641749940869,27.66479,144.15,144.07,3.94189218]
[1641749941272,27.66479,144.15,144.07,31.60668218]
[1641749941572,2.41881783,144.13,144.07,40.39568218]
[1641749942172,2.41881783,144.13,144.07,44.39568218]
[1641749942570,42.39156778,144.18,144.07,44.39568218]
[1641749942571,27.66479,144.18,144.09,4.0]
[1641749942770,27.66479,144.18,144.1,4.0]
[1641749942972,6.65805204,144.19,144.1,12.117]
[1641749943172,6.93649638,144.2,144.1,12.117]
[1641749943372,6.93649638,144.2,144.11,1.734]
[1641749944175,10.93649638,144.2,144.11,1.734]
[1641749944374,6.93794013,144.17,144.08,3.9415756]
[1641749944574,6.93938448,144.14,144.08,3.9415756]
[1641749944775,6.94082943,144.11,144.08,3.9415756]
[1641749944976,16.86182943,144.11,144.08,3.9415756]
[1641749945177,9.55172823,144.1,144.08,7.56e-05]
[1641749945477,55.32958,144.09,144.03,14.72677778]
[1641749945877,27.66479,144.09,144.03,14.72677778]
[1641749946078,1.38157048,144.12,144.03,14.72677778]
[1641749946278,1.38157048,144.12,144.01,4.2812874]
[1641749946879,1.38157048,144.12,144.01,8.2812874]
[1641749947279,1.38157048,144.12,144.02,30.2110774]
[1641749947280,27.66479,144.1,144.02,30.2110774]
[1641749947981,27.66479,144.1,144.03,2.5462874]
[1641749948780,6.94299799,144.07,144.0,1.735]
[1641749948982,15.03499799,144.07,143.99,14.72677778]
[1641749949184,5.55326402,144.06,143.99,14.72677778]
[1641749949882,5.55326402,144.06,143.97,2.55108238]
[1641749950083,5.55326402,144.06,144.02,3.94231758]
[1641749953888,1.5352273,144.05,144.03,3.94364376]
[1641749957695,27.66479,144.07,143.99,27.66479]
[1641749957896,1.83994864,144.04,143.99,27.66479]
[1641749961602,33.21779556,144.07,143.99,27.66479]
[1641749961802,1.83956897,144.03,143.99,27.66479]
[1641749962002,1.83956897,144.03,144.0,2.54846146]
[1641749963707,1.83956897,144.03,143.99,27.66479]
[1641749964305,1.83956897,144.03,144.0,2.54878977]
[1641749965206,5.55379961,144.05,144.0,2.54878977]
[1641749965406,1.83911579,144.02,144.0,2.54878977]
[1641749966910,1.83911579,144.02,143.99,27.66479]
[1641749968315,1.83911579,144.02,143.95,14.72677778]
[1641749968813,5.55535385,144.01,143.95,14.72677778]
[1641749969013,5.55569557,144.0,143.95,14.72677778]
[1641749969213,5.55569557,144.0,143.95,2.55047748]
[1641749969413,33.22048557,144.0,143.95,2.55047748]
[1641749970318,33.22048557,144.0,143.93,14.72677778]
[1641749970616,1.83928411,144.01,143.94,4.0]
[1641749970817,1.83928411,144.01,143.95,1.736]
[1641749971221,1.83928411,144.01,143.95,19.01325526]
[1641749971420,1.83928411,144.01,143.96,27.66479]
[1641749971620,1.83928411,144.01,143.95,19.01325526]
[1641749972020,1.83928411,144.01,143.97,2.55047748]
[1641749972822,1.83928411,144.01,143.95,27.34903589]
[1641749973022,1.83928411,144.01,143.95,29.08503589]
[1641749973724,5.55426706,144.04,143.99,14.72677778]
[1641749975224,1.83949288,144.0,143.97,14.72677778]
[1641749975425,1.83949288,144.0,143.97,42.39156778]
[1641749976025,1.83949288,144.0,143.98,27.34903589]
[1641749976728,1.83949288,144.0,143.99,14.72677778]
[1641749977327,27.66479,144.06,143.99,18.72677778]
[1641749977527,27.66479,144.06,143.99,23.10677778]
[1641749977731,27.66479,144.06,144.0,3.94371267]
[1641749977928,27.66479,144.06,144.0,21.22096793]
[1641749978128,4.0,144.01,144.0,21.22096793]
[1641749978729,4.0,144.01,144.0,6.49419015]
[1641749979630,4.0,144.01,144.0,3.94371267]
[1641749980231,4.0,144.01,144.0,6.50404403]
[1641749980630,4.0,144.01,143.97,14.72677778]
[1641749980830,4.0,143.98,143.97,14.72677778]
[1641749981131,5.55699437,143.97,143.95,10.1071895]
[1641749981329,9.55699437,143.97,143.95,10.1071895]
[1641749981534,31.66479,143.96,143.94,14.75727468]
[1641749982430,5.55768377,143.95,143.94,14.75727468]
[1641749982631,14.18068377,143.95,143.94,14.75727468]
[1641749982831,8.623,143.95,143.94,14.75727468]
[1641749983432,8.623,143.95,143.92,10.1071895]
[1641749983635,8.623,143.95,143.9,39.08087032]
[1641749984235,8.623,143.95,143.88,64.24554706]
[1641749984936,27.66479,143.97,143.88,64.24554706]
[1641749985538,27.66479,143.97,143.89,27.66479]
[1641749986242,27.66479,143.97,143.9,49.18805982]
[1641749987345,27.66479,143.99,143.9,56.86805982]
[1641749987545,13.61217095,144.01,143.92,27.66479]
[1641749987546,6.66627944,144.01,143.92,27.66479]
[1641749988447,6.66627944,144.01,143.93,10.1071895]
[1641749988646,2.59354874,143.96,143.93,10.1071895]
[1641749989148,2.59354874,143.96,143.92,76.85284982]
[1641749989950,1.736,144.0,143.92,66.74566032]
[1641749990150,1.736,144.0,143.92,39.08087032]
[1641749990352,1.736,144.0,143.93,10.1071895]
[1641749990552,11.29193917,144.0,143.93,10.1071895]
[1641749990750,7.29193917,144.0,143.93,10.1071895]
[1641749991153,7.29193917,144.0,143.92,39.08087032]
[1641749991552,27.66479,143.99,143.92,39.08087032]
[1641749991752,27.66479,143.99,143.9,10.1071895]
[1641749991753,31.66479,143.99,143.91,39.08087032]
[1641749991953,5.55673049,143.97,143.91,39.08087032]
[1641749992753,5.55673049,143.97,143.9,10.1071895]
[1641749994059,5.55673049,143.97,143.91,39.08087032]
[1641749994260,5.55756691,143.95,143.91,39.08087032]
[1641749994462,13.26756691,143.95,143.91,39.08087032]
[1641749994659,5.55869993,143.92,143.91,39.08087032]
[1641749994859,14.37943388,143.95,143.9,10.1071895]
[1641749995061,95.9206931,143.99,143.9,10.1071895]
[1641749995260,4.0,143.98,143.9,10.1071895]
[1641749995662,137.19985887,143.99,143.89,1.736]
[1641749995860,130.25300232,143.99,143.89,10.638]
[1641749996061,134.25300232,143.99,143.89,10.638]
[1641749996262,141.19961758,143.99,143.89,10.638]
[1641749996662,141.19961758,143.99,143.89,49.71887032]
[1641749996864,137.19961758,143.99,143.89,49.71887032]
[1641749997065,141.19961758,143.99,143.89,49.71887032]
[1641749997463,27.66479,143.95,143.91,3.94427948]
[1641749999167,35.20379,143.95,143.91,3.94427948]
[1641749999668,62.86858,143.95,143.91,3.94427948]
[1641750000271,68.42642297,143.95,143.91,3.94427948]
[1641750000969,68.42642297,143.95,143.89,11.8431895]
[1641750001370,40.76163297,143.95,143.89,11.8431895]
[1641750001570,33.22263297,143.95,143.92,3.94502099]
[1641750002171,1.61364836,143.92,143.89,11.8431895]
[1641750002370,4.0,143.92,143.89,11.8431895]
[1641750002770,34.33379162,143.95,143.89,1.736]
[1641750003176,38.33379162,143.95,143.89,1.736]
[1641750003973,1.81587825,143.94,143.89,1.736]
[1641750004173,8.88187825,143.94,143.89,1.736]
[1641750005074,1.81587825,143.94,143.89,1.736]
[1641750005275,1.736,144.0,143.89,5.736]
[1641750005473,1.736,144.0,143.93,3.94498942]
[1641750005676,1.736,144.0,143.93,11.20798942]
[1641750006674,1.736,144.0,143.93,21.31517892]
[1641750008976,1.736,144.0,143.93,17.3701895]
[1641750009977,1.45161626,143.99,143.94,3.94439044]
[1641750010584,1.45161626,143.99,143.93,25.02937032]
[1641750010585,16.50669385,143.95,143.93,25.02937032]
[1641750010781,5.5591992,143.91,143.84,97.50295694]
[1641750010980,15.9391992,143.91,143.89,0.016]
[1641750011280,15.9391992,143.91,143.84,97.50295694]
[1641750011281,15.9391992,143.91,143.86,14.75278901]
[1641750011781,27.66479,143.88,143.86,14.75278901]
[1641750011980,34.57679,143.88,143.86,14.75278901]
[1641750012181,34.57679,143.88,143.84,14.75278901]
[1641750012783,47.08924601,143.88,143.84,14.75278901]
[1641750013182,51.08924601,143.88,143.84,14.75278901]
[1641750013683,27.66479,143.85,143.84,14.75278901]
[1641750013883,35.10079,143.85,143.81,14.75278901]
[1641750014584,4.0,143.84,143.81,14.75278901]
[1641750014784,6.95482839,143.82,143.81,14.75278901]
[1641750014983,15.54382839,143.82,143.81,14.75278901]
[1641750015183,8.589,143.82,143.81,14.75278901]
[1641750015585,36.25379,143.82,143.78,14.75278901]
[1641750016585,36.25379,143.82,143.77,14.75278901]
[1641750016786,4.0,143.78,143.77,14.75278901]
[1641750016985,12.1,143.78,143.77,14.75278901]
[1641750017284,8.1,143.78,143.76,14.75278901]
[1641750017485,13.08176371,143.78,143.76,14.75278901]
[1641750017685,27.66479,143.77,143.76,14.75278901]
[1641750017885,33.22936014,143.77,143.72,14.75278901]
[1641750018286,33.48457861,143.77,143.72,14.75278901]
[1641750018485,0.25521847,143.73,143.72,14.75278901]
[1641750018687,6.34421847,143.73,143.72,14.75278901]
[1641750018886,6.089,143.73,143.71,14.75278901]
[1641750019688,33.75379,143.73,143.71,14.75278901]
[1641750019886,33.75379,143.73,143.69,14.75278901]
[1641750020990,33.75379,143.73,143.7,2.53258244]
[1641750021789,33.75379,143.73,143.69,2.53258244]
[1641750022793,33.75379,143.73,143.7,3.74478153]
[1641750022992,33.75379,143.73,143.69,2.53258244]
[1641750022993,6.089,143.73,143.71,3.74478153]
[1641750023192,27.66479,143.77,143.71,3.74478153]
[1641750023393,27.66479,143.77,143.71,6.27736397]
[1641750023593,60.89437553,143.77,143.71,2.53258244]
[1641750024193,5.5656381,143.74,143.71,2.53258244]
[1641750024394,11.8496381,143.74,143.71,2.53258244]
[1641750024794,12.10485657,143.74,143.71,2.53258244]
[1641750024993,12.10485657,143.74,143.7,2.53258244]
[1641750025196,5.8220219,143.71,143.7,2.53258244]
[1641750025394,12.18280343,143.71,143.7,2.53258244]
[1641750025594,39.84759343,143.71,143.68,14.75278901]
[1641750025793,39.84759343,143.71,143.64,14.75278901]
[1641750025994,5.56761068,143.69,143.64,14.75278901]
[1641750026196,5.56761068,143.69,143.65,3.74478153]
[1641750026396,5.56761068,143.69,143.64,14.75278901]
[1641750026595,5.56761068,143.69,143.65,2.52696138]
[1641750026996,5.56761068,143.69,143.66,3.74478153]
[1641750027996,5.56761068,143.69,143.65,2.52696138]
[1641750027997,6.616,143.71,143.68,3.74478153]
[1641750028196,6.284,143.74,143.68,3.74478153]
[1641750028398,5.56535926,143.75,143.67,3.74478153]
[1641750028801,5.56644329,143.72,143.69,2.52412512]
[1641750029099,5.56699571,143.71,143.7,3.93316454]
[1641750029297,11.39099571,143.71,143.7,3.93316454]
[1641750032300,11.64621418,143.71,143.7,3.93316454]
[1641750032499,11.39099571,143.71,143.7,3.93316454]
[1641750032700,5.56699571,143.71,143.62,42.41757901]
[1641750033300,5.56699571,143.71,143.7,3.93351252]
[1641750033501,27.66479,143.72,143.7,7.67829405]
[1641750033701,37.18090664,143.74,143.7,12.30151252]
[1641750034702,5.56659837,143.72,143.7,12.30151252]
[1641750034902,5.56659837,143.72,143.7,16.04629405]
[1641750035103,31.61528099,143.74,143.7,16.04629405]
[1641750035305,31.61528099,143.74,143.7,12.30151252]
[1641750035503,31.61528099,143.74,143.7,3.93351252]
[1641750036003,27.66479,143.74,143.7,3.93351252]
[1641750036204,27.66479,143.74,143.71,2.5263764]
[1641750036404,27.66479,143.74,143.72,3.74478153]
[1641750036604,5.56558996,143.75,143.72,3.74478153]
[1641750037706,27.66479,143.78,143.72,3.74478153]
[1641750037906,27.66479,143.78,143.73,3.74478153]
[1641750038107,27.66479,143.78,143.73,6.27700607]
[1641750038708,27.66479,143.78,143.73,2.53222454]
[1641750039310,27.66479,143.78,143.74,2.53222454]
[1641750042113,3.94980352,143.77,143.74,2.53222454]
[1641750042714,3.94980352,143.77,143.74,17.28501355]
[1641750042915,9.5145627,143.77,143.74,17.28501355]
[1641750043617,9.5145627,143.77,143.74,2.53222454]
[1641750044520,9.5145627,143.77,143.75,3.93318247]
[1641750045320,9.5145627,143.77,143.76,2.53222454]
[1641750045718,5.56475918,143.77,143.76,2.53222454]
[1641750046321,27.66479,143.78,143.75,15.6529487]
[1641750046518,9.206,143.77,143.75,15.6529487]
[1641750046920,9.206,143.77,143.75,0.90015969]
[1641750047121,9.206,143.77,143.75,4.64494122]
[1641750047521,9.206,143.77,143.75,0.90015969]
[1641750047720,27.66479,143.78,143.75,0.90015969]
[1641750047920,27.66479,143.78,143.74,14.75278901]
[1641750048120,27.66479,143.78,143.75,14.75278901]
[1641750048522,27.66479,143.78,143.76,3.93345436]
[1641750049523,3.94977708,143.77,143.76,3.93345436]
[1641750051727,4.20499555,143.77,143.76,3.93345436]
[1641750051927,10.8825377,143.77,143.74,14.75278901]
[1641750052528,10.62731923,143.77,143.74,14.75278901]
[1641750052826,6.93276062,143.77,143.74,14.75278901]
[1641750053028,6.67886801,143.74,143.73,14.75278901]
[1641750053827,34.34365801,143.74,143.71,14.75278901]
[1641750054830,34.34365801,143.74,143.72,14.75278901]
[1641750055628,34.34365801,143.74,143.73,14.75278901]
[1641750056531,38.29412678,143.74,143.73,14.75278901]
[1641750056732,38.29412678,143.74,143.72,14.75278901]
[1641750059133,38.29412678,143.74,143.73,14.75278901]
[1641750060042,34.59887648,143.74,143.73,14.75278901]
[1641750060235,34.34365801,143.74,143.73,14.75278901]
[1641750060632,34.34365801,143.74,143.71,14.75278901]
[1641750060633,34.59887648,143.74,143.71,14.75278901]
[1641750060832,0.25521847,143.73,143.71,14.75278901]
[1641750061032,34.59887648,143.74,143.71,14.75278901]
[1641750061834,6.6797177,143.72,143.71,14.75278901]
[1641750062239,6.6797177,143.72,143.68,42.6450921]
[1641750062641,6.6797177,143.72,143.68,38.90031057]
[1641750063041,27.92000847,143.74,143.72,5.17200117]
[1641750063340,27.92000847,143.74,143.68,38.90031057]
[1641750063540,31.87046871,143.74,143.68,38.90031057]
[1641750063741,59.53525871,143.74,143.68,38.90031057]
[1641750063940,59.28004024,143.74,143.68,42.6450921]
[1641750065043,59.53525871,143.74,143.68,42.6450921]
[1641750065246,59.53525871,143.74,143.69,38.90031057]
[1641750065445,0.25521847,143.73,143.69,38.90031057]
[1641750065845,0.25521847,143.73,143.68,38.90031057]
[1641750067447,0.25521847,143.73,143.69,1.8924945]
[1641750067649,0.25521847,143.73,143.69,40.79280507]
[1641750068448,6.93467469,143.73,143.69,40.79280507]
[1641750069950,6.93467469,143.73,143.7,38.90031057]
[1641750070152,6.67945622,143.73,143.7,38.90031057]
[1641750070553,6.67945622,143.73,143.7,42.6450921]
[1641750070751,55.32958,143.74,143.71,3.74478153]
[1641750070752,27.66479,143.74,143.71,3.74478153]
[1641750070951,6.95773178,143.76,143.7,38.90031057]
[1641750071152,8.01225144,143.78,143.72,3.74478153]
[1641750071451,8.01225144,143.78,143.75,3.74478153]
[1641750071653,8.01225144,143.78,143.75,5.794]
[1641750071854,35.67704144,143.78,143.75,5.794]
[1641750072255,5.56482973,143.77,143.75,5.794]
[1641750073356,5.56482973,143.77,143.73,38.90031057]
[1641750073758,5.56482973,143.77,143.72,42.6450921]
[1641750073957,27.66479,143.75,143.72,42.6450921]
[1641750074358,27.66479,143.75,143.72,38.90031057]
[1641750074658,27.66479,143.75,143.73,3.74478153]
[1641750075058,27.66479,143.75,143.73,5.63659212]
[1641750075262,27.66479,143.75,143.73,1.89181059]
[1641750076458,3.67425162,143.73,143.72,38.90031057]
[1641750076660,0.25521847,143.74,143.72,38.90031057]
[1641750076859,6.67931865,143.73,143.72,38.90031057]
[1641750077159,6.67931865,143.73,143.7,3.74478153]
[1641750077358,6.67931865,143.73,143.68,71.59804541]
[1641750077559,6.67931865,143.73,143.71,3.74478153]
[1641750077962,6.67931865,143.73,143.72,14.78035633]
[1641750079362,27.66479,143.75,143.72,14.78035633]
[1641750079963,3.95045351,143.74,143.72,14.78035633]
[1641750080364,3.95045351,143.74,143.73,14.78035633]
[1641750080767,3.95045351,143.74,143.73,24.10235633]
[1641750080965,35.67750412,143.78,143.73,27.84713786]
[1641750081163,27.66479,143.78,143.73,27.84713786]
[1641750081366,27.66479,143.78,143.74,3.74478153]
[1641750081863,27.66479,143.78,143.73,9.322]
[1641750082063,5.56475503,143.77,143.74,3.74478153]
[1641750082263,5.56475503,143.77,143.75,14.77906756]
[1641750084069,5.56475503,143.77,143.74,18.52384909]
[1641750084367,5.56510874,143.76,143.74,14.77906756]
[1641750085268,5.56510874,143.76,143.75,3.74478153]
[1641750085467,5.56510874,143.76,143.75,11.74078153]
[1641750085669,5.56510874,143.76,143.75,26.51984909]
[1641750085869,5.56510874,143.76,143.75,22.77506756]
[1641750086072,3.94986302,143.77,143.75,22.77506756]
[1641750086467,3.94986302,143.77,143.75,25.33039843]
[1641750087168,3.94986302,143.77,143.75,29.07517996]
[1641750087870,3.94986302,143.77,143.76,2.55533087]
[1641750089171,40.18591639,143.78,143.76,2.55533087]
[1641750089771,33.22891069,143.78,143.75,17.33439843]
[1641750091873,5.56507827,143.76,143.75,17.33439843]
[1641750092473,5.56507827,143.76,143.75,2.55533087]
[1641750093375,3.94972596,143.77,143.75,2.55533087]
[1641750093774,3.94972596,143.77,143.76,3.74478153]
[1641750093976,3.94972596,143.77,143.76,9.94015885]
[1641750094375,3.94972596,143.77,143.76,24.71272283]
[1641750094575,3.94972596,143.77,143.76,28.45750436]
[1641750095078,27.66479,143.8,143.76,28.45750436]
[1641750095277,8.00900285,143.84,143.79,3.74478153]
[1641750095477,8.00900285,143.84,143.79,8.171]
[1641750095676,6.9533776,143.85,143.82,3.74478153]
[1641750095875,6.9533776,143.85,143.82,8.781]
[1641750096077,6.9533776,143.85,143.84,3.74478153]
[1641750096277,14.75278901,143.86,143.84,3.74478153]
[1641750096477,14.75278901,143.86,143.85,3.74478153]
[1641750096677,35.67181481,143.88,143.85,7.422]
[1641750097677,27.66479,143.88,143.87,3.74478153]
[1641750098377,27.66479,143.9,143.87,3.74478153]